[Event "Live Chess"]
[Site "Chess.com"]
[Date "2024.06.02"]
[Round "-"]
[White "vincents82"]
[Black "CheckThis4"]
[Result "0-1"]
[WhiteElo "2039"]
[BlackElo "2693"]
[TimeControl "300"]
[EndTime "16:54:40 PDT"]
[Termination "CheckThis4 won by resignation"]

1. e4 {[%clk 0:04:57.2]} 1... e6 {[%clk 0:04:56.5]} 2. d4 {[%clk 0:04:55.9]}
2... d5 {[%clk 0:04:55.5]} 3. Nd2 {[%clk 0:04:55.3]} 3... Be7 {[%clk 0:04:50.1]}
4. exd5 {[%clk 0:04:48.6]} 4... exd5 {[%clk 0:04:48.8]} 5. Ndf3 {[%clk
0:04:45.9]} 5... Nf6 {[%clk 0:04:46.1]} 6. c3 {[%clk 0:04:45.2]} 6... O-O {[%clk
0:04:44]} 7. Bd3 {[%clk 0:04:44.5]} 7... Bg4 {[%clk 0:04:39.7]} 8. h3 {[%clk
0:04:43.3]} 8... Bh5 {[%clk 0:04:38.5]} 9. g4 {[%clk 0:04:42.7]} 9... Bg6 {[%clk
0:04:37.6]} 10. Ne2 {[%clk 0:04:41.9]} 10... Nbd7 {[%clk 0:04:28.8]} 11. Bxg6
{[%clk 0:04:40.3]} 11... hxg6 {[%clk 0:04:25.3]} 12. Bf4 {[%clk 0:04:36.7]}
12... Re8 {[%clk 0:04:22.2]} 13. O-O {[%clk 0:04:33.3]} 13... Nf8 {[%clk
0:04:19.3]} 14. Ne5 {[%clk 0:04:30]} 14... Ne6 {[%clk 0:04:17.7]} 15. Bg3 {[%clk
0:04:28.8]} 15... Ne4 {[%clk 0:04:14.7]} 16. f3 {[%clk 0:04:22]} 16... Nxg3
{[%clk 0:04:10.5]} 17. Nxg3 {[%clk 0:04:20.4]} 17... Bd6 {[%clk 0:04:10]} 18. f4
{[%clk 0:04:16.7]} 18... Qh4 {[%clk 0:04:05.4]} 19. Kg2 {[%clk 0:04:14.6]} 19...
Nf8 {[%clk 0:03:26.7]} 20. Qf3 {[%clk 0:04:10.1]} 20... f6 {[%clk 0:03:24.3]}
21. Nd3 {[%clk 0:04:07.6]} 21... c6 {[%clk 0:03:22.9]} 22. Rae1 {[%clk
0:04:04.5]} 22... Ne6 {[%clk 0:03:17.8]} 23. Re2 {[%clk 0:03:50.5]} 23... Kf7
{[%clk 0:02:52.4]} 24. Rfe1 {[%clk 0:03:49.2]} 24... Qh6 {[%clk 0:02:40.3]} 25.
f5 {[%clk 0:03:34.1]} 25... Ng5 {[%clk 0:02:27.2]} 26. fxg6+ {[%clk 0:03:20.5]}
26... Qxg6 {[%clk 0:02:25.6]} 27. Qf5 {[%clk 0:03:11.4]} 27... Qxf5 {[%clk
0:02:07.9]} 28. Nxf5 {[%clk 0:03:01.6]} 28... Rxe2+ {[%clk 0:02:06.2]} 29. Rxe2
{[%clk 0:03:00.6]} 29... Bf8 {[%clk 0:02:05]} 30. Nf2 {[%clk 0:02:55.1]} 30...
g6 {[%clk 0:02:01.1]} 31. Ng3 {[%clk 0:02:53.7]} 31... Bd6 {[%clk 0:01:56.4]}
32. h4 {[%clk 0:02:48.8]} 32... Ne6 {[%clk 0:01:54.7]} 33. h5 {[%clk 0:02:23.3]}
33... Nf4+ {[%clk 0:01:51.8]} 34. Kf3 {[%clk 0:02:21.9]} 34... Nxe2 {[%clk
0:01:51.3]} 35. Kxe2 {[%clk 0:02:21.4]} 35... gxh5 {[%clk 0:01:49.9]} 36. Nxh5
{[%clk 0:02:19.8]} 36... Re8+ {[%clk 0:01:44.5]} 37. Kf3 {[%clk 0:02:18.7]}
37... Re1 {[%clk 0:01:41.9]} 38. Nd3 {[%clk 0:02:17.1]} 38... Rb1 {[%clk
0:01:37.7]} 39. Nhf4 {[%clk 0:02:08.1]} 39... Bxf4 {[%clk 0:01:35.9]} 40. Kxf4
{[%clk 0:02:07.6]} 40... a5 {[%clk 0:01:33.4]} 41. g5 {[%clk 0:02:02.8]} 41...
Rf1+ {[%clk 0:01:29.1]} 42. Kg4 {[%clk 0:02:01]} 42... Rg1+ {[%clk 0:01:27.8]}
43. Kf4 {[%clk 0:01:59.9]} 43... fxg5+ {[%clk 0:01:25.8]} 44. Kf5 {[%clk
0:01:58.8]} 44... g4 {[%clk 0:01:19.3]} 45. Ne5+ {[%clk 0:01:57.4]} 45... Ke7
{[%clk 0:01:18]} 46. Nxg4 {[%clk 0:01:56.7]} 46... Rg2 {[%clk 0:01:17.1]} 47.
Ne5 {[%clk 0:01:52.5]} 47... Rxb2 {[%clk 0:01:15]} 48. Nd3 {[%clk 0:01:51.9]}
48... Rxa2 {[%clk 0:01:12.1]} 0-1

[Event "Live Chess"]
[Site "Chess.com"]
[Date "2024.06.02"]
[Round "-"]
[White "GEMdzq"]
[Black "TigerTank70"]
[Result "1-0"]
[WhiteElo "2301"]
[BlackElo "2238"]
[TimeControl "300"]
[EndTime "16:54:46 PDT"]
[Termination "GEMdzq won by resignation"]

1. e4 {[%clk 0:04:58.3]} 1... e5 {[%clk 0:04:58.9]} 2. d4 {[%clk 0:04:56]} 2...
exd4 {[%clk 0:04:57.3]} 3. c3 {[%clk 0:04:55.4]} 3... d3 {[%clk 0:04:56]} 4.
Bxd3 {[%clk 0:04:54.6]} 4... Nc6 {[%clk 0:04:47.3]} 5. Nf3 {[%clk 0:04:46.2]}
5... d5 {[%clk 0:04:45.4]} 6. e5 {[%clk 0:04:42.7]} 6... Bg4 {[%clk 0:04:40]} 7.
O-O {[%clk 0:04:40.9]} 7... Qd7 {[%clk 0:04:35.1]} 8. Re1 {[%clk 0:04:31.9]}
8... O-O-O {[%clk 0:04:31.8]} 9. a4 {[%clk 0:04:26.4]} 9... h5 {[%clk
0:04:16.2]} 10. a5 {[%clk 0:04:22.8]} 10... a6 {[%clk 0:04:15.3]} 11. b4 {[%clk
0:04:19]} 11... h4 {[%clk 0:04:13.8]} 12. b5 {[%clk 0:04:17.1]} 12... Nb8 {[%clk
0:04:07.4]} 13. bxa6 {[%clk 0:04:11]} 13... Nxa6 {[%clk 0:04:05.8]} 14. Bxa6
{[%clk 0:04:09.9]} 14... bxa6 {[%clk 0:04:05.7]} 15. Na3 {[%clk 0:04:03.4]}
15... h3 {[%clk 0:03:58.5]} 16. Qd3 {[%clk 0:04:02.4]} 16... c6 {[%clk
0:03:20.8]} 17. Qxa6+ {[%clk 0:03:59.9]} 17... Qb7 {[%clk 0:03:20.1]} 18. Qd3
{[%clk 0:03:55.1]} 18... hxg2 {[%clk 0:03:17.9]} 19. a6 {[%clk 0:03:49.9]} 19...
Qa7 {[%clk 0:03:12.8]} 20. Be3 {[%clk 0:03:48.6]} 20... Bc5 {[%clk 0:03:11.2]}
21. Rab1 {[%clk 0:03:40.4]} 21... Bxf3 {[%clk 0:03:03.5]} 22. Bxc5 {[%clk
0:03:33.8]} 22... Qxc5 {[%clk 0:02:58.9]} 23. Qxf3 {[%clk 0:03:17]} 23... Ne7
{[%clk 0:02:50.2]} 24. Qg4+ {[%clk 0:03:09.6]} 24... Rd7 {[%clk 0:02:43.4]} 25.
Rb7 {[%clk 0:03:01.5]} 25... Rd8 {[%clk 0:02:33]} 26. Reb1 {[%clk 0:03:00.5]}
1-0

[Event "Live Chess"]
[Site "Chess.com"]
[Date "2024.06.02"]
[Round "-"]
[White "Frankie_Badacsonyi"]
[Black "KeithArkell"]
[Result "0-1"]
[WhiteElo "2424"]
[BlackElo "2420"]
[TimeControl "300"]
[EndTime "16:55:02 PDT"]
[Termination "KeithArkell won by resignation"]

1. d4 {[%clk 0:04:58.3]} 1... e6 {[%clk 0:04:58.7]} 2. c4 {[%clk 0:04:57]} 2...
Bb4+ {[%clk 0:04:57.6]} 3. Bd2 {[%clk 0:04:56]} 3... Bxd2+ {[%clk 0:04:55.3]} 4.
Qxd2 {[%clk 0:04:55.9]} 4... Nf6 {[%clk 0:04:53.3]} 5. Nc3 {[%clk 0:04:54.2]}
5... d6 {[%clk 0:04:52.8]} 6. Nf3 {[%clk 0:04:51.6]} 6... Qe7 {[%clk 0:04:51.8]}
7. e3 {[%clk 0:04:49.4]} 7... e5 {[%clk 0:04:48.6]} 8. Be2 {[%clk 0:04:48.3]}
8... O-O {[%clk 0:04:47]} 9. O-O {[%clk 0:04:46.9]} 9... c6 {[%clk 0:04:46.5]}
10. Rfd1 {[%clk 0:04:43.8]} 10... e4 {[%clk 0:04:44.4]} 11. Ne1 {[%clk
0:04:41.9]} 11... d5 {[%clk 0:04:43.8]} 12. Rac1 {[%clk 0:04:28.2]} 12... Be6
{[%clk 0:04:37.6]} 13. cxd5 {[%clk 0:04:24.3]} 13... cxd5 {[%clk 0:04:36.1]} 14.
Nc2 {[%clk 0:04:11.4]} 14... Nc6 {[%clk 0:04:34.6]} 15. Na1 {[%clk 0:04:09.9]}
15... Rad8 {[%clk 0:04:31.4]} 16. Nb3 {[%clk 0:04:09]} 16... Bg4 {[%clk
0:04:29.7]} 17. h3 {[%clk 0:04:04.5]} 17... Bxe2 {[%clk 0:04:28.5]} 18. Qxe2
{[%clk 0:04:03.8]} 18... Nb4 {[%clk 0:04:27.1]} 19. a3 {[%clk 0:03:55.6]} 19...
Nd3 {[%clk 0:04:26.1]} 20. Rc2 {[%clk 0:03:54.5]} 20... a6 {[%clk 0:04:23]} 21.
Nc1 {[%clk 0:03:53.5]} 21... Nxc1 {[%clk 0:04:19]} 22. Rdxc1 {[%clk 0:03:53.4]}
22... h5 {[%clk 0:04:14.9]} 23. Na4 {[%clk 0:03:51.5]} 23... h4 {[%clk
0:04:06.3]} 24. Qd2 {[%clk 0:03:44.6]} 24... g6 {[%clk 0:04:03.4]} 25. Qb4
{[%clk 0:03:40.5]} 25... Qxb4 {[%clk 0:04:02.1]} 26. axb4 {[%clk 0:03:40.4]}
26... Rd7 {[%clk 0:04:00.1]} 27. Rc7 {[%clk 0:03:37.2]} 27... Rfd8 {[%clk
0:03:58.1]} 28. Nb6 {[%clk 0:03:33.3]} 28... Rxc7 {[%clk 0:03:55.2]} 29. Rxc7
{[%clk 0:03:33.2]} 29... Rb8 {[%clk 0:03:49.7]} 30. Nd7 {[%clk 0:03:32]} 30...
Nxd7 {[%clk 0:03:48.4]} 31. Rxd7 {[%clk 0:03:31.9]} 31... Rc8 {[%clk 0:03:47.1]}
32. Rxd5 {[%clk 0:03:25.5]} 32... Rc1+ {[%clk 0:03:46.1]} 33. Kh2 {[%clk
0:03:24.8]} 33... Rc2 {[%clk 0:03:45.5]} 34. Rd7 {[%clk 0:03:11.7]} 34... Rxf2
{[%clk 0:03:42.2]} 35. Rxb7 {[%clk 0:03:10.5]} 35... Rxb2 {[%clk 0:03:41.3]} 36.
Re7 {[%clk 0:02:52.8]} 36... f5 {[%clk 0:03:39.6]} 37. Re6 {[%clk 0:02:49.5]}
37... Kf7 {[%clk 0:03:37.2]} 38. Rxa6 {[%clk 0:02:48.8]} 38... Rxb4 {[%clk
0:03:36.5]} 39. Ra3 {[%clk 0:02:46.5]} 39... Rb1 {[%clk 0:03:33.7]} 40. Rc3
{[%clk 0:02:39.5]} 40... Kf6 {[%clk 0:03:31.9]} 41. Rc2 {[%clk 0:02:27.1]} 41...
Re1 {[%clk 0:03:30.2]} 42. Rc3 {[%clk 0:02:23.5]} 42... Rd1 {[%clk 0:03:29.4]}
43. Rc2 {[%clk 0:02:08.7]} 43... Rd3 {[%clk 0:03:10.1]} 44. Re2 {[%clk
0:02:06.7]} 44... Kg5 {[%clk 0:03:08]} 45. g3 {[%clk 0:02:03.7]} 45... hxg3+
{[%clk 0:03:06.8]} 46. Kxg3 {[%clk 0:02:03.6]} 46... f4+ {[%clk 0:03:05.1]} 47.
Kf2 {[%clk 0:01:59.4]} 47... fxe3+ {[%clk 0:03:01.8]} 48. Rxe3 {[%clk
0:01:58.3]} 48... Rd2+ {[%clk 0:02:59]} 49. Kg3 {[%clk 0:01:54.1]} 49... Rxd4
{[%clk 0:02:58]} 50. Re2 {[%clk 0:01:38.7]} 50... Rd3+ {[%clk 0:02:56.9]} 51.
Kg2 {[%clk 0:01:37.6]} 51... Kf4 {[%clk 0:02:55.3]} 52. Rf2+ {[%clk 0:01:32.9]}
52... Rf3 {[%clk 0:02:54.4]} 53. Ra2 {[%clk 0:01:26.3]} 53... Rg3+ {[%clk
0:02:52.1]} 54. Kh2 {[%clk 0:01:22.6]} 54... g5 {[%clk 0:02:49.8]} 55. Ra8
{[%clk 0:00:59.1]} 55... Rf3 {[%clk 0:02:41.5]} 56. Kg2 {[%clk 0:00:55.8]} 56...
Rg3+ {[%clk 0:02:38.7]} 57. Kh2 {[%clk 0:00:54.6]} 57... Rd3 {[%clk 0:02:36]}
58. Rf8+ {[%clk 0:00:48.6]} 58... Ke5 {[%clk 0:02:35.1]} 59. Rg8 {[%clk
0:00:46.4]} 59... e3 {[%clk 0:01:53.9]} 60. Rxg5+ {[%clk 0:00:44.7]} 60... Kf4
{[%clk 0:01:53.2]} 61. Rg8 {[%clk 0:00:36.3]} 61... e2 {[%clk 0:01:52]} 0-1

[Event "Live Chess"]
[Site "Chess.com"]
[Date "2024.06.02"]
[Round "-"]
[White "IgorSchukin"]
[Black "ACM42"]
[Result "0-1"]
[WhiteElo "1744"]
[BlackElo "2168"]
[TimeControl "300"]
[EndTime "16:55:09 PDT"]
[Termination "ACM42 won on time"]

1. e4 {[%clk 0:04:57.4]} 1... e6 {[%clk 0:04:58.8]} 2. Nf3 {[%clk 0:04:56]} 2...
c5 {[%clk 0:04:57.6]} 3. Nc3 {[%clk 0:04:55.2]} 3... Nc6 {[%clk 0:04:56.8]} 4.
Bb5 {[%clk 0:04:53.6]} 4... Nge7 {[%clk 0:04:54.2]} 5. O-O {[%clk 0:04:51]} 5...
a6 {[%clk 0:04:53.4]} 6. Be2 {[%clk 0:04:47.9]} 6... g6 {[%clk 0:04:52.1]} 7. d4
{[%clk 0:04:46.3]} 7... cxd4 {[%clk 0:04:50.6]} 8. Nxd4 {[%clk 0:04:45.4]} 8...
Bg7 {[%clk 0:04:49.9]} 9. Be3 {[%clk 0:04:43.8]} 9... O-O {[%clk 0:04:44.7]} 10.
Qd2 {[%clk 0:04:42.3]} 10... b5 {[%clk 0:04:43.5]} 11. a3 {[%clk 0:04:40.7]}
11... Bb7 {[%clk 0:04:42.8]} 12. Rad1 {[%clk 0:04:39]} 12... Qc7 {[%clk
0:04:41.9]} 13. Bh6 {[%clk 0:04:35]} 13... Bxd4 {[%clk 0:04:38.2]} 14. Bxf8
{[%clk 0:04:33.2]} 14... Rxf8 {[%clk 0:04:37.4]} 15. Kh1 {[%clk 0:04:18.8]}
15... Rd8 {[%clk 0:04:36]} 16. f4 {[%clk 0:04:16.3]} 16... d5 {[%clk 0:04:35.2]}
17. e5 {[%clk 0:04:13.9]} 17... Na5 {[%clk 0:04:29.5]} 18. Nb1 {[%clk
0:04:06.7]} 18... Bb6 {[%clk 0:04:23.6]} 19. c3 {[%clk 0:04:04.4]} 19... Nc4
{[%clk 0:04:20]} 20. Bxc4 {[%clk 0:03:59.7]} 20... bxc4 {[%clk 0:04:15.1]} 21.
Qe2 {[%clk 0:03:53.9]} 21... Nf5 {[%clk 0:04:13]} 22. Rf3 {[%clk 0:03:49.5]}
22... h5 {[%clk 0:04:12]} 23. Nd2 {[%clk 0:03:37.6]} 23... d4 {[%clk 0:04:09.7]}
24. Rh3 {[%clk 0:03:27.1]} 24... d3 {[%clk 0:04:04.7]} 25. Qe1 {[%clk
0:03:18.4]} 25... Ne3 {[%clk 0:04:00.2]} 26. Rxe3 {[%clk 0:03:16.6]} 26... Bxe3
{[%clk 0:03:57]} 27. Qxe3 {[%clk 0:03:15.7]} 27... Qc6 {[%clk 0:03:55.7]} 28.
Nf3 {[%clk 0:03:12.4]} 28... Qb5 {[%clk 0:03:48.5]} 29. Rd2 {[%clk 0:03:10.3]}
29... Bxf3 {[%clk 0:03:37.2]} 30. Qxf3 {[%clk 0:03:06]} 30... Qd5 {[%clk
0:03:20.3]} 31. Qxd5 {[%clk 0:03:00]} 31... exd5 {[%clk 0:03:12.6]} 32. h3
{[%clk 0:02:54.5]} 32... d4 {[%clk 0:03:11.6]} 33. cxd4 {[%clk 0:02:48.8]} 33...
Rxd4 {[%clk 0:03:10.2]} 34. g3 {[%clk 0:02:47.7]} 34... a5 {[%clk 0:02:51.7]}
35. Kg2 {[%clk 0:02:38.1]} 35... Re4 {[%clk 0:02:30.1]} 36. Kf3 {[%clk
0:02:26.9]} 36... Re1 {[%clk 0:02:29.2]} 37. g4 {[%clk 0:02:03.2]} 37... h4
{[%clk 0:02:24.3]} 38. Kf2 {[%clk 0:01:46]} 38... Rh1 {[%clk 0:02:22.2]} 39. Kg2
{[%clk 0:01:44.1]} 39... Rc1 {[%clk 0:02:20.2]} 40. Kf3 {[%clk 0:01:34]} 40...
a4 {[%clk 0:02:18.7]} 41. Ke4 {[%clk 0:01:28.2]} 41... Rh1 {[%clk 0:02:17.7]}
42. Kd5 {[%clk 0:01:18.2]} 42... Rxh3 {[%clk 0:02:15]} 43. Kxc4 {[%clk
0:01:17.2]} 43... Rf3 {[%clk 0:02:11]} 44. b4 {[%clk 0:01:05.7]} 44... axb3
{[%clk 0:01:19.1]} 45. f5 {[%clk 0:00:45.8]} 45... gxf5 {[%clk 0:00:40.5]} 46.
gxf5 {[%clk 0:00:44.2]} 46... Rxf5 {[%clk 0:00:39.8]} 47. Kxb3 {[%clk
0:00:35.7]} 47... Rxe5 {[%clk 0:00:36.7]} 48. Rxd3 {[%clk 0:00:32.8]} 48... Rh5
{[%clk 0:00:35.3]} 49. Rh3 {[%clk 0:00:27.1]} 49... Kf8 {[%clk 0:00:34.3]} 50.
a4 {[%clk 0:00:19.3]} 50... Ke7 {[%clk 0:00:32.9]} 51. Kb4 {[%clk 0:00:18.1]}
51... Kd6 {[%clk 0:00:32]} 52. a5 {[%clk 0:00:16.5]} 52... Kc6 {[%clk
0:00:30.5]} 53. Rc3+ {[%clk 0:00:14.2]} 53... Kb7 {[%clk 0:00:28.7]} 54. Rh3
{[%clk 0:00:11.9]} 54... Ka6 {[%clk 0:00:25.6]} 55. Rf3 {[%clk 0:00:09.7]} 55...
h3 {[%clk 0:00:21.4]} 56. Rf6+ {[%clk 0:00:07.6]} 56... Kb7 {[%clk 0:00:20.2]}
57. Rxf7+ {[%clk 0:00:06.8]} 57... Kb8 {[%clk 0:00:18.2]} 58. Rf1 {[%clk
0:00:02.9]} 58... h2 {[%clk 0:00:17.2]} 59. Rh1 {[%clk 0:00:02.5]} 59... Kb7
{[%clk 0:00:16.5]} 60. Ka4 {[%clk 0:00:00.8]} 60... Kc6 {[%clk 0:00:15]} 0-1

[Event "Live Chess"]
[Site "Chess.com"]
[Date "2024.06.02"]
[Round "-"]
[White "oscalik"]
[Black "Dhaydon19"]
[Result "0-1"]
[WhiteElo "2279"]
[BlackElo "2677"]
[TimeControl "300"]
[EndTime "16:55:09 PDT"]
[Termination "Dhaydon19 won on time"]

1. e4 {[%clk 0:04:54.4]} 1... e6 {[%clk 0:04:59.6]} 2. d4 {[%clk 0:04:52.8]}
2... d5 {[%clk 0:04:58.7]} 3. Nd2 {[%clk 0:04:52.4]} 3... dxe4 {[%clk
0:04:57.8]} 4. Nxe4 {[%clk 0:04:51.2]} 4... Be7 {[%clk 0:04:57.5]} 5. Nf3 {[%clk
0:04:50.1]} 5... Nd7 {[%clk 0:04:57.2]} 6. Bd3 {[%clk 0:04:48.9]} 6... Ngf6
{[%clk 0:04:56.6]} 7. Qe2 {[%clk 0:04:38.3]} 7... c5 {[%clk 0:04:55]} 8. c3
{[%clk 0:04:36.5]} 8... cxd4 {[%clk 0:04:52.3]} 9. Nxd4 {[%clk 0:04:34.8]} 9...
Qc7 {[%clk 0:04:03.2]} 10. O-O {[%clk 0:04:27.3]} 10... a6 {[%clk 0:04:00]} 11.
Ng5 {[%clk 0:04:19.1]} 11... Nc5 {[%clk 0:03:56.9]} 12. Bc2 {[%clk 0:04:15.1]}
12... h6 {[%clk 0:03:50.7]} 13. Ngf3 {[%clk 0:04:13.5]} 13... b5 {[%clk
0:03:47.8]} 14. g3 {[%clk 0:04:02.5]} 14... Bb7 {[%clk 0:03:41.9]} 15. Bf4
{[%clk 0:03:59.7]} 15... Bd6 {[%clk 0:03:40.5]} 16. Bxd6 {[%clk 0:03:56.8]}
16... Qxd6 {[%clk 0:03:35.6]} 17. Rad1 {[%clk 0:03:15.1]} 17... Qc7 {[%clk
0:03:29.6]} 18. Qe5 {[%clk 0:02:28.7]} 18... Rc8 {[%clk 0:03:26.4]} 19. Qxc7
{[%clk 0:02:27.2]} 19... Rxc7 {[%clk 0:03:25.4]} 20. Ne5 {[%clk 0:02:22]} 20...
O-O {[%clk 0:03:20.6]} 21. f3 {[%clk 0:02:01.1]} 21... Nd5 {[%clk 0:03:13.9]}
22. Kf2 {[%clk 0:01:57.7]} 22... Nf6 {[%clk 0:03:07.5]} 23. Rd2 {[%clk
0:01:53.5]} 23... Rfc8 {[%clk 0:03:01.2]} 24. Rfd1 {[%clk 0:01:51.9]} 24... Kf8
{[%clk 0:02:55]} 25. Nb3 {[%clk 0:01:48.6]} 25... Nxb3 {[%clk 0:02:52.9]} 26.
Bxb3 {[%clk 0:01:48.4]} 26... Ke7 {[%clk 0:02:52.3]} 27. h4 {[%clk 0:01:28.8]}
27... g6 {[%clk 0:02:43.1]} 28. g4 {[%clk 0:01:26.8]} 28... g5 {[%clk
0:02:36.1]} 29. hxg5 {[%clk 0:01:25.2]} 29... hxg5 {[%clk 0:02:35.6]} 30. Rh1
{[%clk 0:01:22.5]} 30... Rc5 {[%clk 0:02:33.1]} 31. Re2 {[%clk 0:01:19.7]} 31...
Rxe5 {[%clk 0:02:29.9]} 32. Rxe5 {[%clk 0:01:15.3]} 32... Nxg4+ {[%clk
0:02:29.1]} 33. fxg4 {[%clk 0:01:12.8]} 33... Bxh1 {[%clk 0:02:28.5]} 34. Rxg5
{[%clk 0:01:12.4]} 34... Rd8 {[%clk 0:02:25.7]} 35. Ke3 {[%clk 0:01:09.8]} 35...
Bc6 {[%clk 0:02:20.5]} 36. Rh5 {[%clk 0:00:59.6]} 36... Rg8 {[%clk 0:02:16.8]}
37. Kf4 {[%clk 0:00:56.4]} 37... Rg6 {[%clk 0:02:15.6]} 38. g5 {[%clk 0:00:48]}
38... Rg8 {[%clk 0:02:11.4]} 39. Bc2 {[%clk 0:00:40.4]} 39... Bd5 {[%clk
0:02:06.7]} 40. a4 {[%clk 0:00:37.7]} 40... bxa4 {[%clk 0:02:05]} 41. Bxa4
{[%clk 0:00:36.4]} 41... Rb8 {[%clk 0:02:04.4]} 42. Rh7 {[%clk 0:00:19.6]} 42...
Rg8 {[%clk 0:01:53.6]} 43. Bc2 {[%clk 0:00:16.1]} 43... Kf8 {[%clk 0:01:52.5]}
44. b3 {[%clk 0:00:14]} 44... a5 {[%clk 0:01:51.3]} 45. c4 {[%clk 0:00:13.5]}
45... Bc6 {[%clk 0:01:50.5]} 46. g6 {[%clk 0:00:12.2]} 46... Be8 {[%clk
0:01:45.9]} 47. Ke5 {[%clk 0:00:12.1]} 47... fxg6 {[%clk 0:01:38.9]} 48. Kxe6
{[%clk 0:00:10.1]} 48... g5 {[%clk 0:01:37.7]} 49. Kf6 {[%clk 0:00:08.3]} 49...
g4 {[%clk 0:01:35.9]} 50. c5 {[%clk 0:00:07.5]} 50... g3 {[%clk 0:01:33.8]} 51.
Be4 {[%clk 0:00:07.1]} 51... g2 {[%clk 0:01:25.2]} 52. Bxg2 {[%clk 0:00:06.2]}
52... Rg6+ {[%clk 0:01:24.4]} 53. Ke5 {[%clk 0:00:04.3]} 53... Rxg2 {[%clk
0:01:24]} 54. Rh8+ {[%clk 0:00:02.2]} 54... Ke7 {[%clk 0:01:23.2]} 55. Rh7+
{[%clk 0:00:01.8]} 55... Bf7 {[%clk 0:01:22.7]} 56. c6 {[%clk 0:00:00.5]} 56...
Rc2 {[%clk 0:01:21.7]} 0-1

[Event "Live Chess"]
[Site "Chess.com"]
[Date "2024.06.02"]
[Round "-"]
[White "WelshTiger"]
[Black "NeilDruggan73"]
[Result "1-0"]
[WhiteElo "2454"]
[BlackElo "1740"]
[TimeControl "300"]
[EndTime "16:55:16 PDT"]
[Termination "WelshTiger won on time"]

1. e4 {[%clk 0:04:57]} 1... d6 {[%clk 0:04:57.7]} 2. d4 {[%clk 0:04:55.4]} 2...
Nf6 {[%clk 0:04:55.8]} 3. Nc3 {[%clk 0:04:54.5]} 3... g6 {[%clk 0:04:54.7]} 4.
f4 {[%clk 0:04:53.4]} 4... Bg7 {[%clk 0:04:53.6]} 5. Nf3 {[%clk 0:04:52.9]} 5...
O-O {[%clk 0:04:51.5]} 6. Bd3 {[%clk 0:04:51.4]} 6... Nc6 {[%clk 0:04:42.3]} 7.
e5 {[%clk 0:04:50.1]} 7... dxe5 {[%clk 0:04:38.6]} 8. fxe5 {[%clk 0:04:49.3]}
8... Nd7 {[%clk 0:04:35.1]} 9. Be3 {[%clk 0:04:42.8]} 9... Nb6 {[%clk
0:04:31.9]} 10. O-O {[%clk 0:04:35.1]} 10... Bg4 {[%clk 0:04:29.8]} 11. Ne2
{[%clk 0:04:31.9]} 11... Nd5 {[%clk 0:04:23.9]} 12. Bd2 {[%clk 0:04:28.2]} 12...
Ncb4 {[%clk 0:04:16.3]} 13. Be4 {[%clk 0:04:22.6]} 13... c6 {[%clk 0:04:05.9]}
14. c3 {[%clk 0:04:19.3]} 14... Na6 {[%clk 0:04:00]} 15. h3 {[%clk 0:04:13.7]}
15... Bd7 {[%clk 0:03:53.7]} 16. b4 {[%clk 0:04:02.8]} 16... f5 {[%clk
0:03:51.3]} 17. exf6 {[%clk 0:04:00.8]} 17... exf6 {[%clk 0:03:46.7]} 18. Bd3
{[%clk 0:03:56.5]} 18... Re8 {[%clk 0:03:32.1]} 19. Qc1 {[%clk 0:03:39.3]} 19...
h5 {[%clk 0:03:21.5]} 20. Nf4 {[%clk 0:03:37.5]} 20... Nxf4 {[%clk 0:03:14.3]}
21. Bxf4 {[%clk 0:03:37.4]} 21... Kh7 {[%clk 0:03:07.7]} 22. Qc2 {[%clk
0:03:29.1]} 22... f5 {[%clk 0:02:56]} 23. Be5 {[%clk 0:03:28.1]} 23... Bf6
{[%clk 0:02:48.8]} 24. Rae1 {[%clk 0:03:24.2]} 24... Nc7 {[%clk 0:02:43.8]} 25.
Bxf6 {[%clk 0:03:07.4]} 25... Qxf6 {[%clk 0:02:40.9]} 26. Ne5 {[%clk 0:03:07.3]}
26... Rxe5 {[%clk 0:02:30.1]} 27. dxe5 {[%clk 0:03:05.8]} 27... Qg5 {[%clk
0:02:15.1]} 28. Bc4 {[%clk 0:02:58.2]} 28... Nd5 {[%clk 0:02:03.1]} 29. Bxd5
{[%clk 0:02:52.6]} 29... cxd5 {[%clk 0:02:02]} 30. Qc1 {[%clk 0:02:44]} 30...
Qxc1 {[%clk 0:01:57.2]} 31. Rxc1 {[%clk 0:02:42.9]} 31... Be6 {[%clk 0:01:55.9]}
32. Kf2 {[%clk 0:02:41.7]} 32... b5 {[%clk 0:01:52.6]} 33. Ke3 {[%clk
0:02:40.3]} 33... Rc8 {[%clk 0:01:48.7]} 34. h4 {[%clk 0:02:38.3]} 34... Rc4
{[%clk 0:01:46.2]} 35. g3 {[%clk 0:02:37.6]} 35... Rg4 {[%clk 0:01:43.6]} 36.
Rf3 {[%clk 0:02:07.6]} 36... Kg7 {[%clk 0:01:25.1]} 37. Rg1 {[%clk 0:01:51.5]}
37... Re4+ {[%clk 0:01:14.7]} 38. Kd3 {[%clk 0:01:48.8]} 38... Rxe5 {[%clk
0:01:01.4]} 39. Re3 {[%clk 0:01:46]} 39... Re4 {[%clk 0:00:52.1]} 40. Rxe4
{[%clk 0:01:43.1]} 40... dxe4+ {[%clk 0:00:40.5]} 41. Kd4 {[%clk 0:01:42.4]}
41... Kf6 {[%clk 0:00:39.2]} 42. a4 {[%clk 0:01:38.3]} 42... a6 {[%clk
0:00:27.9]} 43. axb5 {[%clk 0:01:33.7]} 43... axb5 {[%clk 0:00:25.7]} 44. Ra1
{[%clk 0:01:33.3]} 44... Bc4 {[%clk 0:00:07.5]} 45. Ra6+ {[%clk 0:01:31.3]}
45... Kf7 {[%clk 0:00:06.2]} 46. Ke3 {[%clk 0:01:28.2]} 46... Kg7 {[%clk
0:00:05]} 47. Kf4 {[%clk 0:01:27.4]} 47... Kf7 {[%clk 0:00:04.2]} 48. Rd6 {[%clk
0:01:15.3]} 48... Ke7 {[%clk 0:00:01.8]} 49. Rxg6 {[%clk 0:01:13.6]} 49... Kf7
{[%clk 0:00:00.2]} 50. Rd6 {[%clk 0:01:08.7]} 1-0

[Event "Live Chess"]
[Site "Chess.com"]
[Date "2024.06.02"]
[Round "-"]
[White "Plato_77"]
[Black "Queensandpawns"]
[Result "0-1"]
[WhiteElo "1301"]
[BlackElo "2308"]
[TimeControl "300"]
[EndTime "16:55:42 PDT"]
[Termination "Queensandpawns won by resignation"]

1. d4 {[%clk 0:04:57.8]} 1... e5 {[%clk 0:04:59.9]} 2. dxe5 {[%clk 0:04:50.1]}
2... Nc6 {[%clk 0:04:59.4]} 3. Nf3 {[%clk 0:04:48.2]} 3... Qe7 {[%clk
0:04:59.1]} 4. e4 {[%clk 0:04:41.8]} 4... Nxe5 {[%clk 0:04:57.4]} 5. Nc3 {[%clk
0:04:37.5]} 5... Nxf3+ {[%clk 0:04:55.9]} 6. Qxf3 {[%clk 0:04:37.4]} 6... d6
{[%clk 0:04:55.2]} 7. Bc4 {[%clk 0:04:28.4]} 7... Nf6 {[%clk 0:04:54.5]} 8. Bg5
{[%clk 0:04:23]} 8... Be6 {[%clk 0:04:52.9]} 9. Bxe6 {[%clk 0:04:15.7]} 9...
fxe6 {[%clk 0:04:52.4]} 10. O-O {[%clk 0:04:11.3]} 10... O-O-O {[%clk
0:04:51.4]} 11. a4 {[%clk 0:04:03.2]} 11... h6 {[%clk 0:04:50.5]} 12. Qf4 {[%clk
0:03:55.8]} 12... hxg5 {[%clk 0:04:49.2]} 13. Qxg5 {[%clk 0:03:54.1]} 13... g6
{[%clk 0:04:47.4]} 0-1